Cogmind - Beta 16 @@@ ROGUE MODE // 2025.11.21 @ 18:18:25 Player: LightKnight Result: Destroyed self with Precision Grenade Launcher Performance ------------- Evolutions (3) 1500 Regions Visited (14) 2800 Robots Destroyed (204) 1020 Value Destroyed (7294) 7294 Prototype IDs (42) 840 Alien Tech Used (0) 0 Bonus (2335) 2335 TOTAL SCORE: 15789 Bonus ------- High Alert Combat Kills 780 Follower Combat Kills 474 Entered Garrisons 200 Met Imprinter 300 Destroyed Z-Imprinter 1000 Triggered Deep Caves Wall 500 Exposed GOLEM Chamber 500 Acquired ECA 300 Friendly Fire -1719 Cogmind --------- Core Integrity 0/700 Matter 85/300 Energy 88/100 System Corruption 2% Temperature Warm (194) Movement Walking (310) Ox2 Location -7/Deep Caves Parts ------- > --- POWER (1) -------- (None) > --- PROPULSION (4) --- Armored Treads Zionite Composite Leg I > --- UTILITY (5) ------ High-capacity Storage Unit Makeshift Kinetic Plating > --- WEAPON (3) ------- Zionite Phaser-S Improved EM Pulse Cannon Precision Grenade Launcher > --- INVENTORY (20) --- Zionite Light DM Reactor Seismic Detector Encrypted Comm Array Energy Filter Mobile Refinery Mk. CCLXVII Zionite Laser-S Zionite Phaser-S Zionite Phaser-S Peak State ------------ > --- POWER ------------ Heavy Deuterium Engine > --- PROPULSION ------- Advanced Treads Makeshift Leg Zionite Composite Leg I Zionite Composite Leg I > --- UTILITY ---------- Experimental Heat Sink High-capacity Storage Unit Makeshift Salvage Targeting Computer Zionite Heavy Carapace > --- WEAPON ----------- Improved EM Pulse Cannon Molecular Deconstructor > --- INVENTORY -------- Zionite Light DM Reactor Zionite Light DM Reactor Armored Treads Improved Cooling System High-capacity Battery Seismic Detector Encrypted Comm Array Energy Filter Makeshift Kinetic Plating Mobile Refinery Mk. CCLXVII Zionite Laser-S Zionite Phaser-S Zionite Phaser-S Zionite Phaser-S Improved EM Pulse Cannon Improved EM Pulse Cannon Improved EM Pulse Cannon Heavy Missile Launcher Precision Grenade Launcher [Rating: 79] Favorites ----------- Power Deuterium Engine Engine Deuterium Engine Power Core Neutrino Core Reactor Zionite Light DM Reactor Propulsion Improved Treads Treads Improved Treads Leg Aluminum Leg Wheel Wheel Hover Unit Aerolev Unit Utility High-capacity Storage Unit Device Improved Cooling System Storage High-capacity Storage Unit Processor Improved Signal Interpreter Hackware Makeshift Hacking Suite Protection Hardened Medium Armor Plating Weapon Improved EM Pulse Cannon Energy Gun Advanced Beam Rifle Energy Cannon Improved EM Pulse Cannon Ballistic Gun Assault Rifle Ballistic Cannon Light Cannon Launcher Precision Grenade Launcher Special Weapon Molecular Deconstructor Special Melee Weapon Datajack Build | -11 -10 -10 -9 -9 -9 -8 -8 -8 -8 -7 -7 -7 -7 -7 ------- Run | Yrd Mat Min Mat Min Exi Min Mat Gar Mat Fac Low Low Zio Dee Slots Evolved 6 | . . . 2 . . . 2 . . 2 . . . . Power . | . . . . . . . . . . . . . . . Propulsion 2 | . . . 1 . . . . . . 1 . . . . Utility 3 | . . . . . . . 2 . . 1 . . . . Weapon 1 | . . . 1 . . . . . . . . . . . Parts Attached 123 | . 14 . 27 2 3 . 9 5 10 17 7 . 10 19 Power 17 | . 3 . 5 . . . . . 2 2 . . 2 3 Engine 14 | . 3 . 5 . . . . . 2 2 . . 1 1 Core 1 | . . . . . . . . . . . . . 1 . Reactor 2 | . . . . . . . . . . . . . . 2 Propulsion 29 | . 5 . 8 . 1 . 2 1 4 2 . . 1 5 Treads 21 | . 2 . 7 . 1 . 2 1 4 1 . . 1 2 Leg 6 | . 2 . 1 . . . . . . . . . . 3 Wheel 1 | . 1 . . . . . . . . . . . . . Hover 1 | . . . . . . . . . . 1 . . . . Flight . | . . . . . . . . . . . . . . . Utility 36 | . 3 . 3 . 1 . 3 2 2 8 2 . 5 7 Device 16 | . . . 1 . . . 1 2 2 5 1 . 3 1 Storage 6 | . 1 . 1 . 1 . . . . 1 1 . . 1 Processor 2 | . . . . . . . . . . 1 . . 1 . Hackware 1 | . . . . . . . . . . . . . . 1 Protection 11 | . 2 . 1 . . . 2 . . 1 . . 1 4 Artifact . | . . . . . . . . . . . . . . . Weapon 41 | . 3 . 11 2 1 . 4 2 2 5 5 . 2 4 Energy Gun 20 | . 1 . 9 . . . 1 1 1 3 . . 1 3 Energy Cannon 10 | . . . 1 1 . . 3 1 . 2 2 . . . Ballistic Gun . | . . . . . . . . . . . . . . . Ballistic Cannon 2 | . 2 . . . . . . . . . . . . . Launcher 7 | . . . 1 1 . . . . 1 . 2 . 1 1 Special Weapon 1 | . . . . . . . . . . . 1 . . . Impact Weapon . | . . . . . . . . . . . . . . . Slashing Weapon . | . . . . . . . . . . . . . . . Piercing Weapon . | . . . . . . . . . . . . . . . Special Melee Weapon 1 | . . . . . 1 . . . . . . . . . Unidentified Prototypes 21 | . . . 4 . . . 1 . 2 3 1 . 3 7 Parts Lost 37 | . 7 . 4 . . 1 . . . 2 . . . 23 Power 6 | . 3 . . . . . . . . . . . . 3 Propulsion 11 | . 3 . 1 . . . . . . . . . . 7 Utility 7 | . . . . . . . . . . 1 . . . 6 Weapon 13 | . 1 . 3 . . 1 . . . 1 . . . 7 Highest Loss Streak 6 | . 3 . 2 . . 1 . . . 2 . . . 6 To Critical Strikes 1 | . . . . . . . . . . . . . . 1 Average Backups 15 | . 9 12 14 15 16 19 15 15 14 15 18 15 15 16 Power 1 | . . 1 1 1 2 4 1 1 2 1 1 1 1 2 Propulsion 3 | . 4 3 1 6 5 6 5 4 4 3 3 3 3 1 Utility 4 | . 2 4 4 3 3 4 3 3 2 4 6 4 4 5 Weapon 5 | . 1 3 4 3 3 2 5 6 6 6 7 5 5 7 Tool/Special . | . . . . . . . . . . . . . . . Unused Backups 31 | . . . 11 . . . 5 1 3 5 . 2 . 4 Power 7 | . . . 1 . . . 3 . 1 2 . . . . Propulsion 4 | . . . 2 . . . . . 1 1 . . . . Utility 7 | . . . 4 . . . . . 1 1 . 1 . . Weapon 10 | . . . 4 . . . 1 1 . 1 . . . 3 Tool/Special 3 | . . . . . . . 1 . . . . 1 . 1 Average Slot Usage (%) 97 | . 95 100 99 100 100 100 99 99 99 97 99 100 93 89 Engine 8 | . 13 14 11 11 11 11 9 9 9 7 7 7 3 4 Treads 25 | . 18 . 21 33 33 33 27 26 27 28 30 30 30 15 Leg 3 | . 7 28 11 . . . . . . . . . . 11 Device 14 | . . . 6 11 11 11 17 17 18 19 22 23 20 9 Storage 9 | . 14 14 11 11 11 11 9 9 9 10 7 7 7 7 Processor 2 | . . . . . . . . . . . 7 7 3 6 Protection 4 | . 10 14 4 . . . 8 9 9 5 . . 1 8 Energy Gun 9 | . 13 . 23 22 22 22 6 10 3 15 . . . 2 Energy Cannon 12 | . . . 1 2 . 7 20 16 23 7 19 23 19 12 Ballistic Cannon 1 | . 3 28 7 . . . . . . . . . . . Launcher 1 | . . . . 7 1 3 . . . . 3 . . 2 Peak Build Rating 79 | . 8 8 21 20 20 21 30 31 33 46 56 49 62 79 Average Rating 35 | . 7 8 17 19 19 20 29 30 30 38 47 48 51 61 On Entrance 27 | 6 6 8 8 19 19 20 21 30 31 33 46 48 49 61 Avg Prop Armor Cover (%) 5 | . 12 . . . . . . . . . . . . 3 Naked Turns . | . . . . . . . . . . . . . . . Heaviest Build 90 | 14 32 32 46 43 61 63 69 61 59 81 79 79 90 84 Greatest Support 92 | 20 40 20 63 63 63 63 63 60 69 92 92 92 92 91 Greatest Overweight (x) 3 | . 2 1 1 . . . 1 1 . . 1 . . 3 Average Overweight (x) . | . . 1 . . . . . . . . . . . . Largest Inventory Capacity 20 | . 15 15 15 15 20 20 20 15 15 20 20 20 20 20 Average Capacity 17 | . 14 15 15 15 17 20 15 15 15 17 20 20 20 20 Most Carried 20 | . 12 12 15 15 19 20 20 15 15 20 20 20 20 20 Average Carried 16 | . 9 12 14 15 16 19 15 14 14 15 19 19 19 17 Final Capacity 20 | 8 15 15 15 15 20 20 15 15 15 20 20 20 20 20 Final Carried 20 | 6 12 12 15 15 19 19 15 15 15 20 20 20 20 8 Class Distribution -------------------- 37% | Tank 18% | Skirmisher 17% | Gunner 15% | Mutant 8% | Scavenger-Tank Dominant Class ---------------- Mutant | -10/Materials Mutant | -10/Mines Gunner | -9/Materials Gunner | -9/Mines Mutant | -9/Exiles Gunner | -8/Mines Scavenger-Tank | -8/Materials Scavenger-Tank | -8/Garrison Tank | -8/Materials Tank | -7/Factory Skirmisher | -7/Lower Caves Skirmisher | -7/Lower Caves Tank | -7/Zion Tank | -7/Deep Caves Resources | -11 -10 -10 -9 -9 -9 -8 -8 -8 -8 -7 -7 -7 -7 -7 ----------- Run | Yrd Mat Min Mat Min Exi Min Mat Gar Mat Fac Low Low Zio Dee Matter Collected 5444 | 200 336 26 455 104 20 88 97 100 178 467 639 87 2146 501 Remotely . | . . . . . . . . . . . . . . . Salvage Created 8888 | . 796 19 1992 148 . 221 620 683 1559 1517 709 134 . 490 Parts 419 | . 38 5 116 9 . 12 32 31 69 67 22 . . 18 Haulers Intercepted 12 | . 1 . 4 . . . 2 . 3 2 . . . . Recyclers Shooed 7 | . . . 7 . . . . . . . . . . . Parts Field Recycled . | . . . . . . . . . . . . . . . Retrieved Matter . | . . . . . . . . . . . . . . . Parts Self-Destructed 19 | . . . . . . . . . . . 18 1 . . Prevented 12 | . . . . . . . . . . . 6 6 . . Parts Restored . | . . . . . . . . . . . . . . . Kills | -11 -10 -10 -9 -9 -9 -8 -8 -8 -8 -7 -7 -7 -7 -7 ------- Run | Yrd Mat Min Mat Min Exi Min Mat Gar Mat Fac Low Low Zio Dee Combat Hostiles Destroyed 185 | . 19 2 29 5 . 4 7 12 21 28 18 . . 40 Guns 63 | . 17 . 19 . . 1 2 3 3 17 . . . 1 Cannons 57 | . . 2 6 . . 2 5 7 11 6 5 . . 13 AOE 48 | . 2 . 3 5 . 1 . . 1 . 11 . . 25 Classes Destroyed 19 | . 5 . 4 2 . 1 1 . . 1 2 . . 3 Worker 10 | . 2 . 5 . . 1 2 . . . . . . . Builder 2 | . . . 1 . . . . . 1 . . . . . Tunneler 2 | . . . . 1 . 1 . . . . . . . . Hauler 12 | . 1 . 4 . . . 2 . 3 2 . . . . Recycler 6 | . . . 5 . . . . . . 1 . . . . Operator 2 | . . . . . . . 1 . 1 . . . . . Watcher 14 | . 2 . 4 . . . 2 1 4 1 . . . . Swarmer 17 | . 3 2 4 . . . . . . 8 . . . . Grunt 75 | . 16 . 14 4 . 4 2 5 11 9 10 . . . Brawler 6 | . . . 1 . . . 1 1 1 . 2 . . . Duelist 9 | . . . . 1 . . . 3 2 1 2 . . . Sentry 27 | . . . 10 . . . 3 2 7 5 . . . . Specialist 2 | . . . . . . . . . . . 2 . . . Hunter 5 | . . . . . . 1 1 1 . 1 1 . . . Programmer 5 | . . . . . . . . . . 4 1 . . . Z-Light 7 | . . . . . . . . . . . . . . 7 Samaritan 4 | . . . . . . . . . . . 1 3 . . Assembled 32 | . . . . . . . . . . . . . . 32 Golem 1 | . . . . . . . . . . . . . . 1 Thug 1 | . . . . . . . . . . . 1 . . . Best Kill Streak 17 | . 7 2 6 2 . 3 3 4 4 5 4 . . 17 Combat Bots Only 17 | . 5 2 4 2 . 2 3 4 3 5 4 . . 17 Max Kills in Single Turn 4 | . 4 1 3 2 . 1 1 1 3 2 3 1 . 4 Gunslinging 1 | . . . 1 . . . . . . . . . . . Exploded 4 | . 2 . 2 2 . 1 . . 1 . 3 . . 4 Melee . | . . . . . . . . . . . . . . . Uniques/NPCs Destroyed 2 | . . . . . . . . . . . . . . 2 Z-Imprinter (-7/Deep Caves) Warbot (-7/Deep Caves) Combat | -11 -10 -10 -9 -9 -9 -8 -8 -8 -8 -7 -7 -7 -7 -7 -------- Run | Yrd Mat Min Mat Min Exi Min Mat Gar Mat Fac Low Low Zio Dee Hostile Shots Fired 685 | . 86 10 138 6 . 14 11 15 44 132 33 . . 196 Missed 214 | . 20 2 52 2 . 2 7 5 14 46 9 . . 55 Hits 471 | . 66 8 86 4 . 12 4 10 30 86 24 . . 141 Melee 10 | . . . . . . . . 4 . 1 . . . 5 Projectile 461 | . 66 8 86 4 . 12 4 6 30 85 24 . . 136 AOE 1 | . . . . . . . . . . 1 . . . . Critical Strikes 15 | . 1 . 2 . . . 1 3 1 3 2 . . 2 Actively Blocked 1 | . 1 . . . . . . . . . . . . . Part Disruptions 3 | . . . . . . . . . . . 1 . . 2 Damage Taken 8174 | . 995 60 1134 54 . 214 59 276 475 1008 459 . . 3440 Core 1209 | . 225 7 131 . . 63 13 19 26 86 39 . . 600 Absorbed by Shields 200 | . . . . . . . . . . 121 25 . . 54 Redirected to Shielding 42 | . 42 . . . . . . . . . . . . . Ignored by Resistances 112 | . . . . . . . . . . . . . . 112 Regen/Repaired (Parts) 51 | . . . 51 . . . . . . . . . . . Core Remaining (%) 61 | 100 . 7 . . . 51 . . 89 . . . . . Volleys Fired 487 | . 79 4 105 8 . 12 20 29 51 61 33 3 5 77 Largest 3 | . 2 2 3 2 . 3 3 3 3 3 3 3 1 3 Hottest 219 | . 90 60 146 101 . 176 207 207 207 219 207 207 . 189 Shots Fired 1025 | . 153 8 241 10 . 30 49 62 122 183 64 8 5 90 Gun 574 | . 153 . 178 4 . 18 11 29 18 143 . . . 20 Cannon 382 | . . 8 62 . . 9 38 33 104 40 38 8 . 42 Launcher 54 | . . . 1 6 . 3 . . . . 26 . . 18 Special 15 | . . . . . . . . . . . . . 5 10 Kinetic 119 | . 75 8 36 . . . . . . . . . . . Thermal 361 | . 74 . 55 2 . 18 11 29 18 143 . . . 11 Explosive 54 | . . . 1 6 . 3 . . . . 26 . . 18 Electromagnetic 467 | . 4 . 149 2 . 9 38 33 104 40 38 8 . 42 Phasic 9 | . . . . . . . . . . . . . . 9 Robot Hit Streak 23 | . 16 2 11 4 . 4 10 10 13 12 8 6 . 23 Robot Miss Streak 10 | . 4 4 7 2 . 4 2 2 4 4 2 . . 10 Penetration Max . | . . . . . . . . . . . . . . . Secondary Targets 7 | . 1 . 5 . . . . . . 1 . . . . Max Gunslinging Chain 1 | . 1 . 1 . . . . . . 1 . . . . Shots Hit Robots 618 | . 104 3 151 5 4 15 27 39 78 112 32 5 . 43 Core Hits 372 | . 44 2 75 16 . 14 14 19 32 49 35 4 . 68 Critical Kills . | . . . . . . . . . . . . . . . Critical Parts Destroyed 1 | . 1 . . . . . . . . . . . . . Critical Strikes 26 | . 5 . 1 . . 2 2 5 2 7 1 . . 1 Burn 18 | . 4 . . . . 1 1 5 . 7 . . . . Destroy 1 | . 1 . . . . . . . . . . . . . Corrupt 7 | . . . 1 . . 1 1 . 2 . 1 . . 1 Melee Attacks 4 | . . . . . 4 . . . . . . . . . Impact . | . . . . . . . . . . . . . . . Slashing . | . . . . . . . . . . . . . . . Piercing . | . . . . . . . . . . . . . . . Sneak Attacks 4 | . . . . . 4 . . . . . . . . . Combat Hostiles . | . . . . . . . . . . . . . . . Follow-up Attacks . | . . . . . . . . . . . . . . . Damage Inflicted 19917 | . 1683 75 3270 416 . 665 851 1199 2517 2697 2411 205 . 3928 Guns 6422 | . 1327 . 1971 58 . 188 144 468 252 1890 . . . 124 Cannons 6503 | . . 53 785 . . 150 627 616 2099 721 611 149 . 692 Explosions 6826 | . 344 . 479 358 . 308 47 115 139 86 1800 38 . 3112 Melee . | . . . . . . . . . . . . . . . Ramming 166 | . 12 22 35 . . 19 33 . 27 . . 18 . . Kinetic 1129 | . 628 53 448 . . . . . . . . . . . Thermal 5810 | . 1006 . 987 32 . 327 191 583 326 1976 . . . 382 Explosive 5309 | . . . 109 358 . 254 . . . . 1800 . . 2788 Electromagnetic 7437 | . 37 . 1691 26 . 65 627 616 2164 721 611 187 . 692 Impact . | . . . . . . . . . . . . . . . Slashing . | . . . . . . . . . . . . . . . Piercing . | . . . . . . . . . . . . . . . Phasic 66 | . . . . . . . . . . . . . . 66 Highest Corruption 7 | . . . . . . . . . 3 5 7 7 7 2 Average Corruption 4 | . . . . . . . . . 3 3 5 7 7 2 Corruption Purged . | . . . . . . . . . . . . . . . Corruption Blocked . | . . . . . . . . . . . . . . . Effects 139 | . . . . . . . . . 8 30 55 40 1 5 Message Errors 30 | . . . . . . . . . 2 7 10 10 . 1 Matter Fused 39 | . . . . . . . . . 2 11 9 14 1 2 Heat Flow Errors 15 | . . . . . . . . . 1 3 7 3 . 1 Energy Discharges 15 | . . . . . . . . . 1 4 5 5 . . Parts Rejected 1 | . . . . . . . . . . . 1 . . . Parts Fused 2 | . . . . . . . . . . . 2 . . . Data Loss (minor) 17 | . . . . . . . . . 1 4 9 3 . . Data Loss (major) 9 | . . . . . . . . . . 1 5 3 . . Misfires 7 | . . . . . . . . . 1 . 5 1 . . Alerts 3 | . . . . . . . . . . . 2 1 . . Weapon Failures 1 | . . . . . . . . . . . . . . 1 Overload Shots . | . . . . . . . . . . . . . . . Overflow Damage 525 | . 67 . 33 1 . . 32 . 112 30 7 38 . 205 Projectiles 197 | . . . 9 . . . 15 . 112 30 . 26 . 5 Explosions 316 | . 67 . 24 1 . . 17 . . . 7 . . 200 Melee 12 | . . . . . . . . . . . . 12 . . Knockbacks 6 | . 1 . 4 . . . 1 . . . . . . . Impact 2 | . 1 . . . . . 1 . . . . . . . Kinetic 4 | . . . 4 . . . . . . . . . . . Secondary . | . . . . . . . . . . . . . . . Self-Inflicted Damage 652 | . 104 . 70 . . . . . . . 76 . . 402 Shots 8 | . 1 . 2 . . . . . . . 3 . . 2 Rammed 18 | . 3 . 3 . . 3 4 . 3 . . 2 . . Targets Rammed 24 | . 3 2 5 . . 4 5 . 3 . . 2 . . Kicked 3 | . . 2 1 . . . . . . . . . . . Crushed 3 | . . . 1 . . 1 1 . . . . . . . Highest Temperature 276 | . 188 27 276 . . 168 192 192 219 243 228 244 . 194 Average Temperature 67 | . 52 12 73 . . 69 69 59 75 76 82 71 . 46 Received Heat Transfer 2084 | . 450 . 456 30 . 54 54 54 234 158 102 . . 492 Effects 2 | . . . 2 . . . . . . . . . . . Energy Bleed 2 | . . . 2 . . . . . . . . . . . Siege Activations . | . . . . . . . . . . . . . . . Martial Activations . | . . . . . . . . . . . . . . . Shielding Activations . | . . . . . . . . . . . . . . . Robots Disrupted 1 | . . . 1 . . . . . . . . . . . Combat Hostiles 1 | . . . 1 . . . . . . . . . . . Robots Corrupted 17 | . . . 1 . . . . 1 8 3 2 1 . 1 Combat Hostiles 14 | . . . 1 . . . . 1 6 3 2 . . 1 Parts Fried 55 | . . . 7 . . 1 5 2 20 5 7 8 . . Impact Corruptions 2 | . . . . . . . . . . . . 2 . . Robots Melted 3 | . . . . . . . . 1 . 2 . . . . Combat Hostiles 3 | . . . . . . . . 1 . 2 . . . . Parts Melted 21 | . 1 . . . . . 1 5 . 14 . . . . Heat Transferred 11361 | . 2507 . 1708 74 . 605 383 1321 544 4145 . . . 74 Parts Sabotaged . | . . . . . . . . . . . . . . . Parts Stolen . | . . . . . . . . . . . . . . . Parts Stripped . | . . . . . . . . . . . . . . . Power Chain Reactions 14 | . . . 8 . . 1 1 1 1 1 . 1 . . Alert | -11 -10 -10 -9 -9 -9 -8 -8 -8 -8 -7 -7 -7 -7 -7 ------- Run | Yrd Mat Min Mat Min Exi Min Mat Gar Mat Fac Low Low Zio Dee Maximum Alert Level 3 | . 1 . 2 1 . . . 2 3 3 . . . . Low Security (%) 53 | . 74 100 60 89 . 100 100 40 . . . . . . Level 1 19 | . 25 . 27 10 . . . 16 14 34 . . . . Level 2 16 | . . . 12 . . . . 43 35 32 . . . . Level 3 11 | . . . . . . . . . 50 32 . . . . Level 4 . | . . . . . . . . . . . . . . . Level 5 . | . . . . . . . . . . . . . . . High Security . | . . . . . . . . . . . . . . . Max Security . | . . . . . . . . . . . . . . . Peak Influence 993 | . 374 110 511 232 . 105 126 571 880 993 . . . . Initial 392 | . . 110 3 194 . . 29 1 278 392 . . . . Average 274 | . 118 52 182 137 . 18 47 331 668 567 . . . . Influence Increases 5906 | . 705 40 1047 240 . 235 300 590 1116 1213 420 . . . Destroy 0b10 Robot/C 3200 | . 380 40 580 140 . 140 140 380 480 560 360 . . . Destroy 0b10 Robot/NC 250 | . 25 . 95 5 . 10 35 5 50 20 5 . . . Destroy Leader 800 | . 96 . 196 30 . 30 58 20 164 166 40 . . . Allied During Kill 159 | . . . . 27 . 11 . 88 33 . . . . . Successful Hack 98 | . 14 . 13 . . . 20 . 20 31 . . . . Select Force Hacks 150 | . 60 . 60 . . . . . 30 . . . . . Disable Machine 285 | . 75 . 60 . . 15 . 60 60 15 . . . . Anti-Garrison Action 600 | . . . . . . . . . 200 400 . . . . Destroy Structure 154 | . 25 . 43 38 . 29 2 7 4 6 . . . . Partial Spotted 15 | . 15 . . . . . . . . . . . . . Lose Combat Pursuer 195 | . 15 . . . . . 45 30 75 15 15 . . . Influence Decreases 5906 | . 421 314 558 673 66 158 374 22 825 1085 977 433 . . Entered New Map 1815 | . . 174 7 305 66 . 48 2 293 470 367 83 . . Time Decay 3811 | . 351 140 511 368 . 108 326 . 452 595 610 350 . . Lost Part 140 | . 70 . 40 . . 10 . . . 20 . . . . Lost Ally 140 | . . . . . . 40 . 20 80 . . . . . Squads Dispatched 24 | . 5 . 4 . . . . . 4 11 . . . . Investigation 11 | . 3 . 3 . . . . . 2 3 . . . . Extermination 3 | . . . . . . . . . . 3 . . . . Reinforcement 7 | . 2 . 1 . . . . . 2 2 . . . . Assault . | . . . . . . . . . . . . . . . Garrison 3 | . . . . . . . . . . 3 . . . . Intercept . | . . . . . . . . . . . . . . . Searches Triggered . | . . . . . . . . . . . . . . . Construction Impeded . | . . . . . . . . . . . . . . . Haulers Reinforced 1 | . . . . . . . . . . 1 . . . . Active Scanning Responses . | . . . . . . . . . . . . . . . Cargo Convoy Interrupts . | . . . . . . . . . . . . . . . Stealth | -11 -10 -10 -9 -9 -9 -8 -8 -8 -8 -7 -7 -7 -7 -7 --------- Run | Yrd Mat Min Mat Min Exi Min Mat Gar Mat Fac Low Low Zio Dee Distress Signals 12 | . . . 2 . . . 1 . 6 3 . . . . Communications Jammed . | . . . . . . . . . . . . . . . Distress Signals . | . . . . . . . . . . . . . . . Times Spotted 263 | . 27 3 43 7 . 7 15 17 41 42 18 . . 43 Peak Tracking Total 27 | . 3 2 6 3 . 3 4 5 6 4 4 . . 27 Tactical Retreats 13 | . 1 . . . . . 2 2 5 1 1 . . 1 Traps | -11 -10 -10 -9 -9 -9 -8 -8 -8 -8 -7 -7 -7 -7 -7 ------- Run | Yrd Mat Min Mat Min Exi Min Mat Gar Mat Fac Low Low Zio Dee Traps Triggered 9 | . 3 . 1 . . . . 2 1 2 . . . . Indirectly . | . . . . . . . . . . . . . . . Trap Hack Attempts . | . . . . . . . . . . . . . . . Triggered . | . . . . . . . . . . . . . . . Disarmed . | . . . . . . . . . . . . . . . Reprogrammed . | . . . . . . . . . . . . . . . Reused 2 | . . . . . . . . . . . . . . 2 Traps Extracted . | . . . . . . . . . . . . . . . Installed 2 | . . . . . . . . . . . . . . 2 Triggered . | . . . . . . . . . . . . . . . Most Traps Carried 2 | . . . . . . . . . . . . 2 2 2 Machines | -11 -10 -10 -9 -9 -9 -8 -8 -8 -8 -7 -7 -7 -7 -7 ---------- Run | Yrd Mat Min Mat Min Exi Min Mat Gar Mat Fac Low Low Zio Dee Machines Disabled 23 | . 5 . 4 . . 1 . 4 4 1 1 . . 3 Max in Single Turn 5 | . 5 . 1 . . 1 . 1 2 1 1 . . 1 Garrison Access 3 | . . . . . . . . . 1 2 . . . . Machines Repaired . | . . . . . . . . . . . . . . . Machines Dismantled . | . . . . . . . . . . . . . . . Machines Sabotaged . | . . . . . . . . . . . . . . . Overloaded Fab Kills . | . . . . . . . . . . . . . . . Hacking | -11 -10 -10 -9 -9 -9 -8 -8 -8 -8 -7 -7 -7 -7 -7 --------- Run | Yrd Mat Min Mat Min Exi Min Mat Gar Mat Fac Low Low Zio Dee Machines Accessed 46 | . 7 . 14 . 1 1 5 2 7 8 . 1 . . Terminals 29 | . 5 . 9 . . 1 3 2 5 4 . . . . Fabricators 2 | . . . . . . . . . . 2 . . . . Repair Stations 1 | . . . 1 . . . . . . . . . . . Recycling Units 5 | . 2 . 2 . . . . . 1 . . . . . Scanalyzers 3 | . . . 2 . . . 1 . . . . . . . Garrison Access 4 | . . . . . . . 1 . 1 2 . . . . Total Hacks 100 | . 19 . 28 . 1 4 15 3 19 10 . 1 . . Successful 49 | . 9 . 12 . 1 1 9 . 10 6 . 1 . . Failed 50 | . 10 . 15 . . 3 6 3 9 4 . . . . Catastrophic 5 | . . . 1 . . . . 1 1 2 . . . . Database Lockouts 1 | . . . 1 . . . . . . . . . . . Manual 69 | . 16 . 20 . . 4 9 . 11 8 1 . . . Terminals 74 | . 17 . 20 . . 4 10 3 14 6 . . . . Fabricators 2 | . . . . . . . . . . 2 . . . . Repair Stations 2 | . . . 2 . . . . . . . . . . . Recycling Units 7 | . 2 . 2 . . . . . 3 . . . . . Scanalyzers 8 | . . . 4 . . . 4 . . . . . . . Garrison Access 5 | . . . . . . . 1 . 2 2 . . . . Terminal Hacks 14 | . 3 . 2 . 1 1 2 . 3 1 . 1 . . Record 1 | . . . . . 1 . . . . . . . . . Robot Analysis 4 | . 2 . 1 . . 1 . . . . . . . . Prototype ID Bank 4 | . . . . . . . 1 . 2 1 . . . . Open Door 1 | . . . . . . . . . . . . 1 . . Terminal Index 1 | . . . . . . . 1 . . . . . . . Locate Traps 3 | . 1 . 1 . . . . . 1 . . . . . Fabricator Hacks . | . . . . . . . . . . . . . . . Repair Station Hacks 2 | . . . 2 . . . . . . . . . . . Scan Component 1 | . . . 1 . . . . . . . . . . . Repair 1 | . . . 1 . . . . . . . . . . . Recycling Unit Hacks . | . . . . . . . . . . . . . . . Scanalyzer 2 | . . . 1 . . . 1 . . . . . . . Retrieve Study 2 | . . . 1 . . . 1 . . . . . . . Garrison Access Hacks 1 | . . . . . . . 1 . . . . . . . Unlock Access 1 | . . . . . . . 1 . . . . . . . Unauthorized Hacks 30 | . 6 . 7 . . . 5 . 7 5 . . . . Terminals 22 | . 4 . 5 . . . 5 . 5 3 . . . . Track 1 | . . . . . . . 1 . . . . . . . Botnet 11 | . 3 . 4 . . . 1 . 2 1 . . . . Operators 2 | . . . 1 . . . 1 . . . . . . . Skim 8 | . 1 . . . . . 2 . 3 2 . . . . Fabricators . | . . . . . . . . . . . . . . . Repair Stations . | . . . . . . . . . . . . . . . Recycling Units 5 | . 2 . 2 . . . . . 1 . . . . . Tunnel 5 | . 2 . 2 . . . . . 1 . . . . . Scanalyzers . | . . . . . . . . . . . . . . . Garrison Access 3 | . . . . . . . . . 1 2 . . . . Jam 3 | . . . . . . . . . 1 2 . . . . Data Cores Recovered . | . . . . . . . . . . . . . . . Used . | . . . . . . . . . . . . . . . Hacking Detections 31 | . 4 . 9 . . 1 4 2 5 6 . . . . Full Trace Events 3 | . 1 . 1 . . 1 . . . . . . . . Feedback Events . | . . . . . . . . . . . . . . . Feedback Blocked . | . . . . . . . . . . . . . . . Robot Schematics Acquired . | . . . . . . . . . . . . . . . Robots Built . | . . . . . . . . . . . . . . . Authchips . | . . . . . . . . . . . . . . . Time . | . . . . . . . . . . . . . . . Total Robot Build Rating . | . . . . . . . . . . . . . . . Part Schematics Acquired . | . . . . . . . . . . . . . . . Parts Built . | . . . . . . . . . . . . . . . Authchips . | . . . . . . . . . . . . . . . Time . | . . . . . . . . . . . . . . . Total Part Build Rating . | . . . . . . . . . . . . . . . Part Studies Acquired 2 | . . . 1 . . . 1 . . . . . . . Parts Repaired 1 | . . . 1 . . . . . . . . . . . Time 51 | . . . 51 . . . . . . . . . . . Parts Recycled . | . . . . . . . . . . . . . . . Recycled Matter . | . . . . . . . . . . . . . . . Retrieved Matter . | . . . . . . . . . . . . . . . Retrieved Components . | . . . . . . . . . . . . . . . Parts Scanalyzed . | . . . . . . . . . . . . . . . Part Schematics Acquired . | . . . . . . . . . . . . . . . Parts Damaged . | . . . . . . . . . . . . . . . Bothacking | -11 -10 -10 -9 -9 -9 -8 -8 -8 -8 -7 -7 -7 -7 -7 ------------ Run | Yrd Mat Min Mat Min Exi Min Mat Gar Mat Fac Low Low Zio Dee Used RIF Installer . | . . . . . . . . . . . . . . . Robots Hacked 4 | . . . . . 4 . . . . . . . . . Non-combat 3 | . . . . . 3 . . . . . . . . . Combat 1 | . . . . . 1 . . . . . . . . . Robot Hacks Applied 4 | . . . . . 4 . . . . . . . . . parse_system 4 | . . . . . 4 . . . . . . . . . Relay Couplers Released . | . . . . . . . . . . . . . . . Fabnet Peak Effective % . | . . . . . . . . . . . . . . . Robots Rewired 6 | . . . . . . . . 6 . . . . . . Allies Hacked . | . . . . . . . . . . . . . . . Hacks Repelled . | . . . . . . . . . . . . . . . Allies | -11 -10 -10 -9 -9 -9 -8 -8 -8 -8 -7 -7 -7 -7 -7 -------- Run | Yrd Mat Min Mat Min Exi Min Mat Gar Mat Fac Low Low Zio Dee Total Allies 10 | . . . . 3 . . . 6 . . . . 1 . Largest Group 6 | . . . . 3 3 3 . 6 5 . . . 1 1 Highest-Rated Group 99 | . . . . 40 40 40 . 99 82 . . . 99 99 Highest-Rated Ally 99 | . . . . 16 16 16 . 18 18 . . . 99 99 Initial Warlord ECA Mod 2 | . . . . . . . . . 2 1 1 1 1 1 Total Orders 4 | . . . . . . . . . 4 . . . . . STAY 2 | . . . . . . . . . 2 . . . . . FOLLOW 2 | . . . . . . . . . 2 . . . . . Ally Attacks 100 | . . . . 13 . 15 . 32 23 . . . . 17 Total Damage 1900 | . . . . 89 . 194 . 581 433 . . . . 603 Kills 24 | . . . . 2 . 3 . 7 5 . . . . 7 Allies Corrupted . | . . . . . . . . . . . . . . . Allies Melted . | . . . . . . . . . . . . . . . Intel | -11 -10 -10 -9 -9 -9 -8 -8 -8 -8 -7 -7 -7 -7 -7 ------- Run | Yrd Mat Min Mat Min Exi Min Mat Gar Mat Fac Low Low Zio Dee Active Infowar (turns) 6457 | . . . . . . . . . 994 1897 1994 1287 285 . Sensors 3533 | . . . . . . . . . . 2 1959 1287 285 . Seismic 2924 | . . . . . . . . . 994 1895 35 . . . Robot Analysis Total 4 | . 2 . 1 . . 1 . . . . . . . . Derelict Logs Recovered 8 | . . . . 2 . . . . . . 1 2 3 . Drone Launches . | . . . . . . . . . . . . . . . Drone Recoveries . | . . . . . . . . . . . . . . . Exploration | -11 -10 -10 -9 -9 -9 -8 -8 -8 -8 -7 -7 -7 -7 -7 ------------- Run | Yrd Mat Min Mat Min Exi Min Mat Gar Mat Fac Low Low Zio Dee Turns Passed 19652 | . 1411 292 2444 855 730 873 916 1008 1134 1897 1998 1287 2614 2193 Spaces Moved 10338 | 1 700 146 1175 519 446 516 494 494 557 987 1159 794 1417 933 Core . | . . . . . . . . . . . . . . . Treads 9052 | . 397 . 803 519 446 516 494 494 557 987 1159 794 1417 469 Legs 1177 | 1 194 146 372 . . . . . . . . . . 464 Wheels 109 | . 109 . . . . . . . . . . . . . Hover . | . . . . . . . . . . . . . . . Flight . | . . . . . . . . . . . . . . . Fastest Speed 110 | 120 110 190 160 160 160 160 160 160 160 160 160 160 156 120 Average Speed 165 | 120 158 190 169 160 160 160 160 160 160 160 160 160 159 207 Slowest Speed 410 | 120 190 190 190 160 160 160 240 240 160 160 240 160 160 410 Overloaded Moves . | . . . . . . . . . . . . . . . Propulsion Burnouts . | . . . . . . . . . . . . . . . Robots Hopped . | . . . . . . . . . . . . . . . Potential Cave-ins . | . . . . . . . . . . . . . . . Cave-ins Triggered . | . . . . . . . . . . . . . . . Exploration Rate (%) 70 | 2 98 38 97 99 64 100 41 53 68 29 97 95 86 85 Regions Visited 14 Branch Regions 8 Pre-discovered Areas 10 | . 2 . 2 . 1 . . . 1 . 1 . 3 . Known Exits Taken 4 | . . . . . . . 1 . . 1 1 1 . . Unknown Exits Taken 9 | 1 1 1 1 1 1 1 . . 1 . . . 1 . Scrap Searched 19 | . . . . 1 . 1 . . . . 4 9 4 . Spaces Dug . | . . . . . . . . . . . . . . . Terrain Destroyed 403 | . 25 . 37 44 . 38 2 3 2 5 171 . . 76 Melee . | . . . . . . . . . . . . . . . Projectile 16 | . . . . . . 3 . . . . . . . 13 AOE 387 | . 25 . 37 44 . 35 2 3 2 5 171 . . 63 Terrain Rammed . | . . . . . . . . . . . . . . . Walls Destroyed . | . . . . . . . . . . . . . . . Machines Disabled . | . . . . . . . . . . . . . . . Actions | -11 -10 -10 -9 -9 -9 -8 -8 -8 -8 -7 -7 -7 -7 -7 --------- Run | Yrd Mat Min Mat Min Exi Min Mat Gar Mat Fac Low Low Zio Dee Total 11985 | . 845 151 1446 533 460 536 579 654 708 1163 1248 807 1764 1091 Wait 584 | . 36 . 68 1 . . 31 32 56 39 19 . 295 7 Move 10325 | . 699 145 1174 518 445 515 494 493 556 986 1158 793 1416 933 Hop . | . . . . . . . . . . . . . . . Pick Up 93 | . 9 . 25 1 5 1 4 2 6 17 5 4 7 7 Fast Attach 67 | . 6 . 10 . . . 6 4 6 7 5 . 12 11 Attach 52 | . 6 . 9 . . 1 2 . . 4 2 . 6 22 Detach 32 | . 4 . 6 . . . 2 . 1 4 1 . 4 10 Swap 101 | . 2 . 12 4 4 3 2 6 12 28 15 . 3 10 Drop 129 | . 1 . 32 1 2 . 13 4 17 17 10 5 16 11 Fire 487 | . 79 4 105 8 . 12 20 29 51 61 33 3 5 77 Melee 4 | . . . . . 4 . . . . . . . . . Ram 1 | . 1 . . . . . . . . . . . . . Kick 3 | . . 2 1 . . . . . . . . . . . Crush 20 | . 2 . 4 . . 4 5 . 3 . . 2 . . Escape Stasis . | . . . . . . . . . . . . . . . Rewire 85 | . . . . . . . . 84 . . . . . 1 Trap 2 | . . . . . . . . . . . . . . 2 Miscellaneous . | . . . . . . . . . . . . . . . Route ------- -11/Scrapyard -10/Materials (discovered 5 exits: *Mat x3 / [*Min] / [*Sub]) -10/Mines -9/Materials (discovered 5 exits: *Mat x3 / [*Min] / [*Sto]) -9/Mines (discovered 4 exits: *Mat x2 / *Exi / *Zio) -9/Exiles -8/Mines (discovered 2 exits: *Mat x2) -8/Materials (discovered 2 exits: *Fac / Gar) -8/Garrison (discovered 2 exits: *Mat x2) -8/Materials (discovered 2 exits: *Fac x2) -7/Factory (discovered 4 exits: *Fac x2 / *Low x2) -7/Lower Caves -7/Lower Caves (discovered 2 exits: *Fac / *Zio) -7/Zion (discovered 2 exits: [*Dee] / [*Pro]) -7/Deep Caves (discovered 1 exit: [*Pro]) History --------- Turn | Location | Event 1 | -11/Scrapyard | Discovered new exit (range 0) 1 | -11/Scrapyard | Entered Materials 183 | -10/Materials | Discovered new exit (range 9) 315 | -10/Materials | Build established: Mutant 505 | -10/Materials | Discovered new exit (range 6) 729 | -10/Materials | Discovered new exit (range 4) 1051 | -10/Materials | Core integrity fell below 50% 1051 | -10/Materials | Core integrity fell below 20% 1069 | -10/Materials | Discovered new exit (range 15) 1089 | -10/Materials | Lost 3 parts (2n1w) 1272 | -10/Materials | Discovered new exit (range 7) 1412 | -10/Materials | Entered Mines 1428 | -10/Mines | Met a Derelict bent on vengeance 1641 | -10/Mines | Discovered new exit (range 10) 1704 | -10/Mines | Entered Materials 1704 | -9/Materials | Evolved 2 slots: Propulsion x1, Weapon x1 2001 | -9/Materials | Build established: Tank 2785 | -9/Materials | Discovered new exit (range 8) 3016 | -9/Materials | Central database locked down 3067 | -9/Materials | Build established: Gunner 3080 | -9/Materials | Discovered new exit (range 11) 3246 | -9/Materials | Repaired Imp. EM Shotgun 3572 | -9/Materials | Discovered new exit (range 5) 3714 | -9/Materials | Discovered new exit (range 16) 4007 | -9/Materials | Discovered new exit (range 14) 4148 | -9/Materials | Entered Mines 4169 | -9/Mines | Learned Materials security intel 4190 | -9/Mines | Assisted by bots powering up and referring to "LRC-V3" 4242 | -9/Mines | Learned Materials stockpile data 4255 | -9/Mines | Received a Rocket Launcher from a helpful Derelict 4381 | -9/Mines | Discovered new exit (range 7) 4519 | -9/Mines | Discovered new exit (range 10) 4622 | -9/Mines | A Derelict revealed a hidden shortcut to a safe place 4996 | -9/Mines | Deemed a non-threat by the Exiles lab entrance 4996 | -9/Mines | Discovered new exit (range 5) 5003 | -9/Mines | Entered Exiles 5003 | -9/Exiles | Accompanied by 3 allies 5051 | -9/Exiles | Met 8R-AWN 5078 | -9/Exiles | Met EX-HEX 5125 | -9/Exiles | Met EX-BIN 5179 | -9/Exiles | Met EX-DEC 5220 | -9/Exiles | Learned location of Zion (-7) 5370 | -9/Exiles | Build established: Mutant 5715 | -9/Exiles | Discovered new exit (range 10) 5733 | -9/Exiles | Entered Mines 5733 | -8/Mines | Accompanied by 3 allies 6036 | -8/Mines | Build established: Gunner 6065 | -8/Mines | Discovered new exit (range 14) 6588 | -8/Mines | Discovered new exit (range 9) 6606 | -8/Mines | Entered Materials 6606 | -8/Materials | Evolved 2 slots: Utility x2 6909 | -8/Materials | Build established: Tank 7273 | -8/Materials | Build established: Scavenger-Tank 7333 | -8/Materials | Discovered new exit (range 12) 7522 | -8/Materials | Identified exit to Garrison 7522 | -8/Materials | Entered Garrison 7544 | -8/Garrison | Triggered checkpoint 7577 | -8/Garrison | Triggered checkpoint 7710 | -8/Garrison | Triggered checkpoint 7924 | -8/Garrison | Triggered checkpoint 8243 | -8/Garrison | Discovered new exit (range 8) 8450 | -8/Garrison | Triggered checkpoint 8500 | -8/Garrison | Discovered new exit (range 8) 8530 | -8/Garrison | Entered Materials 8530 | -8/Materials | Accompanied by 5 allies 8782 | -8/Materials | Lost 3 allies 9115 | -8/Materials | Build established: Tank 9130 | -8/Materials | Discovered new exit (range 16) 9640 | -8/Materials | Discovered new exit (range 15) 9664 | -8/Materials | Entered Factory 9664 | -7/Factory | Evolved 2 slots: Propulsion x1, Utility x1 9788 | -7/Factory | Discovered new exit (range 11) 10006 | -7/Factory | Garrison activated, responded to threat 10133 | -7/Factory | Discovered new exit (range 16) 10754 | -7/Factory | Discovered new exit (range 8) 11287 | -7/Factory | Discovered new exit (range 7) 11559 | -7/Factory | Identified exit to Lower Caves 11561 | -7/Factory | Entered Lower Caves 11572 | -7/Lower Caves | Met a Warlord Commander 11573 | -7/Lower Caves | Learned location of Warlord (-5) 11574 | -7/Lower Caves | Warlord Commander delivered Encrypted Comm Array 11578 | -7/Lower Caves | Found Encrypted Comm Array 11864 | -7/Lower Caves | Build established: Skirmisher 12433 | -7/Lower Caves | Acquired the password to a Derelict Tinkerer's latest research 12445 | -7/Lower Caves | Found Prototype Special Weapon 12534 | -7/Lower Caves | Learned 4 Factory zone layouts 12568 | -7/Lower Caves | Caught by Unaware searching for contraband prototypes 12583 | -7/Lower Caves | Caught by Unaware searching for contraband prototypes 12714 | -7/Lower Caves | Encountered a Warlord checkpoint 13280 | -7/Lower Caves | Found DCF Scrap (14 items) 13491 | -7/Lower Caves | Discovered new exit (range 10) 13542 | -7/Lower Caves | Identified Molecular Deconstructor 13558 | -7/Lower Caves | Identified exit to Lower Caves 13559 | -7/Lower Caves | Entered another Lower Caves area 13568 | -7/Lower Caves | Discovered new exit (range 9) 13599 | -7/Lower Caves | Found Prototype Device 13629 | -7/Lower Caves | Identified exit to Factory 13892 | -7/Lower Caves | Encountered a Warlord checkpoint 13943 | -7/Lower Caves | Learned location of 1 exit from Factory 14414 | -7/Lower Caves | Discovered new exit (range 7) 14539 | -7/Lower Caves | Learned Factory emergency access door positions 14845 | -7/Lower Caves | Identified exit to Zion 14846 | -7/Lower Caves | Entered Zion 14902 | -7/Zion | System corruption cleaned by Quarantine Array 14989 | -7/Zion | Discovered new exit (range 15) 15082 | -7/Zion | Received a visual enhancement algorithm 15387 | -7/Zion | Learned Factory terminal intel 15427 | -7/Zion | Build established: Tank 15535 | -7/Zion | Learned location of Data Miner (-6) 15726 | -7/Zion | Found Prototype Device 15726 | -7/Zion | Identified Mobile Refinery Mk. CCLXVII 15789 | -7/Zion | Identified Heart of Steel 16017 | -7/Zion | Heart of Steel transformed into Warbot 16057 | -7/Zion | Build established: Gunner 16156 | -7/Zion | Learned Factory terminal intel 16222 | -7/Zion | Found Prototype Launcher 16222 | -7/Zion | Identified Rocket Array 16584 | -7/Zion | Build established: Tank 16722 | -7/Zion | Met Imprinter 17455 | -7/Zion | Discovered new exit (range 4) 17457 | -7/Zion | Saw the warning signs outside the Deep Caves entrance 17460 | -7/Zion | Entered Deep Caves 17460 | -7/Deep Caves | Accompanied by 1 ally (Warbot) 17849 | -7/Deep Caves | Attacked by Z-Imprinter 17868 | -7/Deep Caves | Allies destroyed Z-Imprinter 17896 | -7/Deep Caves | Lost 4 parts (2n1u1w) 18138 | -7/Deep Caves | Z-Facility disabled 18154 | -7/Deep Caves | Build established: Mutant 18205 | -7/Deep Caves | Murdered Warbot 18236 | -7/Deep Caves | Lost 3 parts (1p1n1u) 18494 | -7/Deep Caves | Found Prototype Protection 18494 | -7/Deep Caves | Identified Zio. Weapon Casing 18624 | -7/Deep Caves | Found Prototype Protection 18624 | -7/Deep Caves | Identified Zio. Heavy Carapace 18800 | -7/Deep Caves | Build established: Tank 19327 | -7/Deep Caves | Discovered new exit (range 6) 19470 | -7/Deep Caves | Spotted AG-65758 19480 | -7/Deep Caves | Core integrity fell below 50% 19510 | -7/Deep Caves | Destroyed AG-65758 19533 | -7/Deep Caves | Lost 6 parts (1p2n1u2w) 19540 | -7/Deep Caves | Triggered Deep Caves wall 19559 | -7/Deep Caves | Exposed GOLEM chamber 19564 | -7/Deep Caves | Core integrity fell below 20% 19595 | -7/Deep Caves | Destroyed 17 combat bots 19631 | -7/Deep Caves | Lost 6 parts (1n2u3w) 19653 | -7/Deep Caves | Destroyed self with Precision Grenade Launcher Last Messages --------------- 19618_ as-67050 destroyed. 19619_ Extracted 32 energy. 19622_ as-63652 destroyed. 19623_ Extracted 32 energy. 19626_ as-32494 destroyed. 19627_ Extracted 32 energy. 19628_ as-96433 destroyed. 19629_ Extracted 32 energy. 19630_ System corrupted: Imp. EM Pulse Cannon+ failed to cycle. 19632_ as-52561 destroyed. 19633_ Extracted 32 energy. 19635_ Extracted 2 energy. 19638_ as-36485 destroyed. 19640_ as-77243 destroyed. 19645_ Critical hit (Destroy). 19645_ Imp. Cooling System destroyed. 19652_ Zio. Light DM Reactor destroyed. 19653_ Destroyed Asb. F-torch. 19653_ Destroyed Asb. Hover Unit. 19653_ as-57388 destroyed. Map ----- +----------------------------------------------------+ | ?????????? = ###?????????# #????# | | ????????? =! #?????????# #????# | | ????????? ###?????????# #????# | | ???????? = ##??????????# #????? | | ????????? % #??????????# #????? | | ????????# !! * #??????????# ###### | | ????????# * * * #??????????# ## # | | ????????# #????????### # | | ?????????" ] ! #????????# | | ????????"" ] ##???????# #### | | ????????" ! "#???????# #??## | | ????????? = ###??????# #??## | | ????????"" "#??????# #??# | | ????????# = ####????# #??### | | ????????" ; #????# #????## | | ????????" ;######## #?????# | | ????????" = ##????# | | ????????""" / ####?## | | ????????" #??# | | ????????"" ##"### #??? | | ????????" #??#?# ### #### | | ????????"" % ##????# ##?# | | ????????" #a# #?????# #??###### | | ????????" #### #aa ##?????## ##???????? | | ????????""" ###??# ##%a ##???????####????????? | | ?????????" ????####@ ?????????????????????? | | ?????????######???????####?????????????????????? | | | | | | | | | | | | | | | | | | | | | | | | | | | | | | | | | | | | | | | | | | | | | | | +----------------------------------------------------+ Best States ------------- Heat Dissipation 88 Energy Generation 27 Energy Capacity 565 Matter Stores 300 Matter Capacity 300 Sight Range 16 Robot Scan Range 15 Terrain Scan Density 10 Armor Coverage 1200 Resistance: KI 10 Weapon Shielding 100 Evasion (%) 55 Recoil Reduction 4 Energy Filtering 30 Salvage Targeting 4 Item Schematics ----------------- None Robot Schematics ------------------ None Fabricated ------------ Nothing Repaired ---------- Imp. EM Shotgun | 27% | -9/Materials Studied --------- Com. Wheel | -9/Materials | Hacked Imp. EM Pulse Cannon | -8/Materials | Hacked Alien Tech Used ----------------- None Achievements -------------- Brother of Steel My Bad That Tickles Challenges ------------ None Game ------ Seed PhaseMicroScanner Manual? 0 Play Time 02:06:26 Cumulative 467.3 hours Start 2025.11.17 @ 18:21:55 End 2025.11.21 @ 18:18:25 Sessions 7 Manual Loads 0 Difficulty Rogue Special Mode None Game No. 294 Rogue 294 Adventurer 0 Explorer 0 Win Type - Total 33 Types 26/1/4/2/0/0/0/0/0/0 Lore% 91 Gallery% 82 Achievement% 51 Wizard Run 0 Options --------- Layout 0 ASCII 0 Keyboard 1 Movement Arrows Keybinds 0 Fullscreen 2 Font 18/Terminus Map View 76x50 Zoom Use 0% Tactical HUD 1 Map Filters NONE Filters NONE Steam 1 RUN: 802d614c-d2ba-4f15-8284-a483892da80c